{"text_format":"1","workbook":"xlsx","n_sheets":6,"sheets":["Alle Hold","Beregning af Alder til Database","Reportsheet","Pivot Tabel","Mastersheet","Hovedside"],"not_rendered":{"charts":0,"images":17,"macros":1,"external_links":0,"defined_names":2,"comments":0,"pivot_tables":1},"unopened":[],"bounds":{"document_bytes":16777216,"sheet_cells":100000,"rows_first":2000,"rows_last":500,"rows_between":2000,"halvings":0,"cell_chars":16384,"cell_head_chars":4096},"cells_cut":0,"cells_raw":0,"read":"whole","date_system":"1900"}

{"sheet":"Alle Hold","index":0,"n_rows":28,"n_cols":27,"rows_kept":28,"cut":false,"hidden":false,"merged":[]}
["Dette Ark er input til Combo boksene. Der kan tilføjes flere hold mm. Bare ved at skrive dem under de givne hold.",null,null,null,null,null,null,"A3 til A x er Combo boks 1. B til T er Combo boks 2"]
[]
["Grundkursister ","Grundkursister F","Fortsættere 1 F","Videregående 1 F","Blues Boogie F","Boogie Woogie F","Glidende F","Jump Boogie Grundkursus F","Jump Rock F","FallRock F","RockaBilly F","Rock´n Roll F","SidestegsRock F","Shuffle F","SheiveRock F","1 Laks og 2 Sild E","Bugg Grundkursus F","GrundkursusTango F","Vals F","Country Swing F","Passive Medlemmer F","Medlemmer på flere Hold F","Kom og Spis Arrangementer F","Grundkursister F Ungdom","Fortsættere 1 F Ungdom","Videregående 1 F Ungdom","Begynder F (WCS)"]
["Fortsætter","Grundkursister E","Fortsættere 1 E","Videregående 1 E","Blues Boogie E","Boogie Woogie E","Glidende E","Jump Boogie Grundkursus E","Jump Rock E","FallRock E","RockaBilly E","Rock´n Roll E","SidestegsRock E","Shuffle E","SheiveRock E","1 Laks og 2 Sild F","Bugg Grundkursus E","GrundkursusTango E","Vals E","Country Swing E","Passive Medlemmer E","Medlemmer på flere Hold E","Kom og Spis Arrangementer E","Grundkursister E Ungdom","Fortsættere 1 E Ungdom","Videregående 1 E Ungdom","Begynder E (WCS)"]
["Videregående",null,"Fortsættere 2 F","Videregående 2 F",null,null,null,"Jump Boogie Fortsætter F",null,null,null,null,null,null,null,null,"Bugg Fortsætter F","FortsætterTango 1 F",null,null,null,null,null,null,"Fortsættere 2 F Ungdom","Videregående 2 F Ungdom"]
["Tema Blues Boogie",null,"Fortsættere 2 E","Videregående 2 E",null,null,null,"Jump Boogie Fortsætter E",null,null,null,null,null,null,null,null,"Bugg Fortsætter E","FortsætterTango 1 E",null,null,null,null,null,null,"Fortsættere 2 E Ungdom","Videregående 2 E Ungdom"]
["Tema Boogie Woogie",null,null,"Videregående 3 F",null,null,null,"Jump Boogie Videregående F",null,null,null,null,null,null,null,null,"Bugg Videregående F","FortsætterTango 2 F",null,null,null,null,null,null,null,"Videregående 3 F Ungdom"]
["Tema Jump Boogie (Jump)",null,null,"Videregående 3 E",null,null,null,"Jump Boogie Videregående E",null,null,null,null,null,null,null,null,"Bugg Videregående E","FortsætterTango 2 E",null,null,null,null,null,null,null,"Videregående 3 E Ungdom"]
["Tema Jump Rock",null,null,"Videregående 4 E",null,null,null,null,null,null,null,null,null,null,null,null,null,"FortsætterTango 3 F",null,null,null,null,null,null,null,"Videregående 4 E Ungdom"]
["Tema Glidende Gåswing",null,null,"Videregående 4 F",null,null,null,null,null,null,null,null,null,null,null,null,null,"FortsætterTango 3 E",null,null,null,null,null,null,null,"Videregående 4 F Ungdom"]
["Tema SidestegsRock",null,null,null,null,null,null,null,null,null,null,null,null,null,null,null,null,"FortsætterTango 4 F"]
["Tema Rock´n Roll",null,null,null,null,null,null,null,null,null,null,null,null,null,null,null,null,"FortsætterTango 4 E"]
["Tema FallRock",null,null,null,null,null,null,null,null,null,null,null,null,null,null,null,null,"VideregåendeTango 1 F"]
["Tema Shuffle",null,null,null,null,null,null,null,null,null,null,null,null,null,null,null,null,"VideregåendeTango 1 E"]
["Tema SheiveRock",null,null,null,null,null,null,null,null,null,null,null,null,null,null,null,null,"VideregåendeTango 2 F"]
["Tema RockaBilly",null,null,null,null,null,null,null,null,null,null,null,null,null,null,null,null,"VideregåendeTango 2 E"]
["Tema Country Swing",null,null,null,null,null,null,null,null,null,null,null,null,null,null,null,null,"VideregåendeTango 3 F"]
["1 Laks og 2 Sild",null,null,null,null,null,null,null,null,null,null,null,null,null,null,null,null,"VideregåendeTango 3 E"]
["Ungdomshold Grundkursister",null,null,null,null,null,null,null,null,null,null,null,null,null,null,null,null,"VideregåendeTango 4 F"]
["Ungdomshold Fortsættere",null,null,null,null,null,null,null,null,null,null,null,null,null,null,null,null,"VideregåendeTango 4 E"]
["Ungdomshold Videregående"]
["West Coast Swing (WCS)"]
["Tango "]
["Bugg "]
["Vals"]
["Passive Medlemmer"]
["Medlemmer på flere Hold"]
["Kom og Spis Arrangement"]

{"sheet":"Beregning af Alder til Database","index":1,"n_rows":1000,"n_cols":15,"rows_kept":1000,"cut":false,"hidden":false,"merged":[]}
["Fornavn","Efternavn","Fødselsdato","Køn",null,"2020-08-20","Herrer","Damer"]
[]
[null,null,null,null,null,null,null,null,null,null,null,null,null,null,"    Brug af denne side og dens funktioner:"]
[null,null,null,null,null,null,null,null,null,null,null,null,null,null,"1. Find og behold Kursister på flere Hold:"]
[null,null,null,null,null,null,null,null,null,null,null,null,null,null,"      Denne funktion beholder Kursister "]
[null,null,null,null,null,null,null,null,null,null,null,null,null,null,"       som deltager på flere Hold og sletter"]
[null,null,null,null,null,null,null,null,null,null,null,null,null,null,"      dem som ikke gør.(Behold Dubletter)"]
[null,null,null,null,null,null,null,null,null,null,null,null,null,null," 2. Find og Fjern Kursister på flere Hold:"]
[null,null,null,null,null,null,null,null,null,null,null,null,null,null,"        Denne funktion fjerner Kursister som"]
[null,null,null,null,null,null,null,null,null,null,null,null,null,null,"        deltager på flere hold og beholder"]
[null,null,null,null,null,null,null,null,null,null,null,null,null,null,"        dem som ikke gør. (Slet Dubletter)"]
[null,null,null,null,null,null,null,null,null,null,null,null,null,null," 3. Beregn Kursist Data"]
[null,null,null,null,null,null,null,null,null,null,null,null,null,null,"          Denne funktion beregner dine "]
[null,null,null,null,null,null,null,null,null,null,null,null,null,null,"           hentede Data."]
[null,null,null,null,null,null,null,null,null,null,null,null,null,null," 4. Overfør Data til \"Indtast nye Hold Data\""]
[null,null,null,null,null,null,null,null,null,null,null,null,null,null,"            Henter Skabelonen til Indtastning"]
[null,null,null,null,null,null,null,null,null,null,null,null,null,null,"             af nye Hold Data. "]
[null,null,null,null,null,null,null,null,null,null,null,null,null,null,"  5. Overfør Data til \"Updater Data\""]
[null,null,null,null,null,null,null,null,null,null,null,null,null,null,"             Henter Skabelonen til Indtastning af "]
[null,null,null,null,null,null,null,null,null,null,null,null,null,null,"              \"Updater Hold Data\""]
[null,null,null,null,null,null,null,null,null,null,null,null,null,null,"              Her kan du Updatere de nye Data."]
[null,null,null,null,null,null,null,null,null,null,null,null,null,null,"   6. Tilbage til Hovedsiden"]
[null,null,null,null,null,null,null,null,null,null,null,null,null,null,"               Sletter alle de beregnede og"]
[null,null,null,null,null,null,null,null,null,null,null,null,null,null,"               Importerede data på siden"]
[null,null,null,null,null,null,null,null,null,null,null,null,null,null,"                og fører dig tilbage "]
[null,null,null,null,null,null,null,null,null,null,null,null,null,null,"                 til Hovedsiden"]
[null,null,null,null,null,null,null,null,null,null,null,null,null,null,"   7. Delete Data"]
[null,null,null,null,null,null,null,null,null,null,null,null,null,null,"               Sletter alle dine Importerede og "]
[null,null,null,null,null,null,null,null,null,null,null,null,null,null,"               beregnede data på siden."]
[]
[]
[]
[]
[]
[null,null,null,null,null,{"$f":"DATEDIF(C35,$F$1,\"Y\")","v":120}]
[null,null,null,null,null,120]
[null,null,null,null,null,120]
[null,null,null,null,null,120]
[null,null,null,null,null,120]
[null,null,null,null,null,120]
[null,null,null,null,null,120]
[null,null,null,null,null,120]
[null,null,null,null,null,120]
[null,null,null,null,null,120]
[null,null,null,null,null,120]
[null,null,null,null,null,120]
[null,null,null,null,null,120]
[null,null,null,null,null,120]
[null,null,null,null,null,120]
[null,null,null,null,null,120]
[null,null,null,null,null,120]
[null,null,null,null,null,120]
[null,null,null,null,null,120]
[null,null,null,null,null,120]
[null,null,null,null,null,120]
[null,null,null,null,null,120]
[null,null,null,null,null,120]
[null,null,null,null,null,120]
[null,null,null,null,null,120]
[null,null,null,null,null,120]
[null,null,null,null,null,120]
[null,null,null,null,null,120]
[null,null,null,null,null,120]
[null,null,null,null,null,120]
[null,null,null,null,null,120]
[null,null,null,null,null,{"$f":"DATEDIF(C66,$F$1,\"Y\")","v":120}]
[null,null,null,null,null,120]
[null,null,null,null,null,120]
[null,null,null,null,null,120]
[null,null,null,null,null,120]
[null,null,null,null,null,120]
[null,null,null,null,null,120]
[null,null,null,null,null,120]
[null,null,null,null,null,120]
[null,null,null,null,null,120]
[null,null,null,null,null,120]
[null,null,null,null,null,120]
[null,null,null,null,null,120]
[null,null,null,null,null,120]
[null,null,null,null,null,120]
[null,null,null,null,null,120]
[null,null,null,null,null,120]
[null,null,null,null,null,120]
[null,null,null,null,null,120]
[null,null,null,null,null,120]
[null,null,null,null,null,120]
[null,null,null,null,null,120]
[null,null,null,null,null,120]
[null,null,null,null,null,120]
[null,null,null,null,null,120]
[null,null,null,null,null,120]
[null,null,null,null,null,120]
[null,null,null,null,null,120]
[null,null,null,null,null,120]
[null,null,null,null,null,120]
[null,null,null,null,null,120]
[null,null,null,null,null,120]
[null,null,null,null,null,120]
[null,null,null,null,null,120]
[null,null,null,null,null,120]
[null,null,null,null,null,120]
[null,null,null,null,null,120]
[null,null,null,null,null,120]
[null,null,null,null,null,120]
[null,null,null,null,null,120]
[null,null,null,null,null,120]
[null,null,null,null,null,120]
[null,null,null,null,null,120]
[null,null,null,null,null,120]
[null,null,null,null,null,120]
[null,null,null,null,null,120]
[null,null,null,null,null,120]
[null,null,null,null,null,120]
[null,null,null,null,null,120]
[null,null,null,null,null,120]
[null,null,null,null,null,120]
[null,null,null,null,null,120]
[null,null,null,null,null,120]
[null,null,null,null,null,120]
[null,null,null,null,null,120]
[null,null,null,null,null,120]
[null,null,null,null,null,120]
[null,null,null,null,null,120]
[null,null,null,null,null,120]
[null,null,null,null,null,120]
[null,null,null,null,null,120]
[null,null,null,null,null,120]
[null,null,null,null,null,120]
[null,null,null,null,null,120]
[null,null,null,null,null,{"$f":"DATEDIF(C130,$F$1,\"Y\")","v":120}]
[null,null,null,null,null,120]
[null,null,null,null,null,120]
[null,null,null,null,null,120]
[null,null,null,null,null,120]
[null,null,null,null,null,120]
[null,null,null,null,null,120]
[null,null,null,null,null,120]
[null,null,null,null,null,120]
[null,null,null,null,null,120]
[null,null,null,null,null,120]
[null,null,null,null,null,120]
[null,null,null,null,null,120]
[null,null,null,null,null,120]
[null,null,null,null,null,120]
[null,null,null,null,null,120]
[null,null,null,null,null,120]
[null,null,null,null,null,120]
[null,null,null,null,null,120]
[null,null,null,null,null,120]
[null,null,null,null,null,120]
[null,null,null,null,null,120]
[null,null,null,null,null,120]
[null,null,null,null,null,120]
[null,null,null,null,null,120]
[null,null,null,null,null,120]
[null,null,null,null,null,120]
[null,null,null,null,null,120]
[null,null,null,null,null,120]
[null,null,null,null,null,120]
[null,null,null,null,null,120]
[null,null,null,null,null,120]
[null,null,null,null,null,120]
[null,null,null,null,null,120]
[null,null,null,null,null,120]
[null,null,null,null,null,120]
[null,null,null,null,null,120]
[null,null,null,null,null,120]
[null,null,null,null,null,120]
[null,null,null,null,null,120]
[null,null,null,null,null,120]
[null,null,null,null,null,120]
[null,null,null,null,null,120]
[null,null,null,null,null,120]
[null,null,null,null,null,120]
[null,null,null,null,null,120]
[null,null,null,null,null,120]
[null,null,null,null,null,120]
[null,null,null,null,null,120]
[null,null,null,null,null,120]
[null,null,null,null,null,120]
[null,null,null,null,null,120]
[null,null,null,null,null,120]
[null,null,null,null,null,120]
[null,null,null,null,null,120]
[null,null,null,null,null,120]
[null,null,null,null,null,120]
[null,null,null,null,null,120]
[null,null,null,null,null,120]
[null,null,null,null,null,120]
[null,null,null,null,null,120]
[null,null,null,null,null,120]
[null,null,null,null,null,120]
[null,null,null,null,null,120]
[null,null,null,null,null,{"$f":"DATEDIF(C194,$F$1,\"Y\")","v":120}]
[null,null,null,null,null,120]
[null,null,null,null,null,120]
[null,null,null,null,null,120]
[null,null,null,null,null,120]
[null,null,null,null,null,120]
[null,null,null,null,null,120]
[null,null,null,null,null,120]
[null,null,null,null,null,120]
[null,null,null,null,null,120]
[null,null,null,null,null,120]
[null,null,null,null,null,120]
[null,null,null,null,null,120]
[null,null,null,null,null,120]
[null,null,null,null,null,120]
[null,null,null,null,null,120]
[null,null,null,null,null,120]
[null,null,null,null,null,120]
[null,null,null,null,null,120]
[null,null,null,null,null,120]
[null,null,null,null,null,120]
[null,null,null,null,null,120]
[null,null,null,null,null,120]
[null,null,null,null,null,120]
[null,null,null,null,null,120]
[null,null,null,null,null,120]
[null,null,null,null,null,120]
[null,null,null,null,null,120]
[null,null,null,null,null,120]
[null,null,null,null,null,120]
[null,null,null,null,null,120]
[null,null,null,null,null,120]
[null,null,null,null,null,120]
[null,null,null,null,null,120]
[null,null,null,null,null,120]
[null,null,null,null,null,120]
[null,null,null,null,null,120]
[null,null,null,null,null,120]
[null,null,null,null,null,120]
[null,null,null,null,null,120]
[null,null,null,null,null,120]
[null,null,null,null,null,120]
[null,null,null,null,null,120]
[null,null,null,null,null,120]
[null,null,null,null,null,120]
[null,null,null,null,null,120]
[null,null,null,null,null,120]
[null,null,null,null,null,120]
[null,null,null,null,null,120]
[null,null,null,null,null,120]
[null,null,null,null,null,120]
[null,null,null,null,null,120]
[null,null,null,null,null,120]
[null,null,null,null,null,120]
[null,null,null,null,null,120]
[null,null,null,null,null,120]
[null,null,null,null,null,120]
[null,null,null,null,null,120]
[null,null,null,null,null,120]
[null,null,null,null,null,120]
[null,null,null,null,null,120]
[null,null,null,null,null,120]
[null,null,null,null,null,120]
[null,null,null,null,null,120]
[null,null,null,null,null,{"$f":"DATEDIF(C258,$F$1,\"Y\")","v":120}]
[null,null,null,null,null,120]
[null,null,null,null,null,120]
[null,null,null,null,null,120]
[null,null,null,null,null,120]
[null,null,null,null,null,120]
[null,null,null,null,null,120]
[null,null,null,null,null,120]
[null,null,null,null,null,120]
[null,null,null,null,null,120]
[null,null,null,null,null,120]
[null,null,null,null,null,120]
[null,null,null,null,null,120]
[null,null,null,null,null,120]
[null,null,null,null,null,120]
[null,null,null,null,null,120]
[null,null,null,null,null,120]
[null,null,null,null,null,120]
[null,null,null,null,null,120]
[null,null,null,null,null,120]
[null,null,null,null,null,120]
[null,null,null,null,null,120]
[null,null,null,null,null,120]
[null,null,null,null,null,120]
[null,null,null,null,null,120]
[null,null,null,null,null,120]
[null,null,null,null,null,120]
[null,null,null,null,null,120]
[null,null,null,null,null,120]
[null,null,null,null,null,120]
[null,null,null,null,null,120]
[null,null,null,null,null,120]
[null,null,null,null,null,120]
[null,null,null,null,null,120]
[null,null,null,null,null,120]
[null,null,null,null,null,120]
[null,null,null,null,null,120]
[null,null,null,null,null,120]
[null,null,null,null,null,120]
[null,null,null,null,null,120]
[null,null,null,null,null,120]
[null,null,null,null,null,120]
[null,null,null,null,null,120]
[null,null,null,null,null,120]
[null,null,null,null,null,120]
[null,null,null,null,null,120]
[null,null,null,null,null,120]
[null,null,null,null,null,120]
[null,null,null,null,null,120]
[null,null,null,null,null,120]
[null,null,null,null,null,120]
[null,null,null,null,null,120]
[null,null,null,null,null,120]
[null,null,null,null,null,120]
[null,null,null,null,null,120]
[null,null,null,null,null,120]
[null,null,null,null,null,120]
[null,null,null,null,null,120]
[null,null,null,null,null,120]
[null,null,null,null,null,120]
[null,null,null,null,null,120]
[null,null,null,null,null,120]
[null,null,null,null,null,120]
[null,null,null,null,null,120]
[null,null,null,null,null,{"$f":"DATEDIF(C322,$F$1,\"Y\")","v":120}]
[null,null,null,null,null,120]
[null,null,null,null,null,120]
[null,null,null,null,null,120]
[null,null,null,null,null,120]
[null,null,null,null,null,120]
[null,null,null,null,null,120]
[null,null,null,null,null,120]
[null,null,null,null,null,120]
[null,null,null,null,null,120]
[null,null,null,null,null,120]
[null,null,null,null,null,120]
[null,null,null,null,null,120]
[null,null,null,null,null,120]
[null,null,null,null,null,120]
[null,null,null,null,null,120]
[null,null,null,null,null,120]
[null,null,null,null,null,120]
[null,null,null,null,null,120]
[null,null,null,null,null,120]
[null,null,null,null,null,120]
[null,null,null,null,null,120]
[null,null,null,null,null,120]
[null,null,null,null,null,120]
[null,null,null,null,null,120]
[null,null,null,null,null,120]
[null,null,null,null,null,120]
[null,null,null,null,null,120]
[null,null,null,null,null,120]
[null,null,null,null,null,120]
[null,null,null,null,null,120]
[null,null,null,null,null,120]
[null,null,null,null,null,120]
[null,null,null,null,null,120]
[null,null,null,null,null,120]
[null,null,null,null,null,120]
[null,null,null,null,null,120]
[null,null,null,null,null,120]
[null,null,null,null,null,120]
[null,null,null,null,null,120]
[null,null,null,null,null,120]
[null,null,null,null,null,120]
[null,null,null,null,null,120]
[null,null,null,null,null,120]
[null,null,null,null,null,120]
[null,null,null,null,null,120]
[null,null,null,null,null,120]
[null,null,null,null,null,120]
[null,null,null,null,null,120]
[null,null,null,null,null,120]
[null,null,null,null,null,120]
[null,null,null,null,null,120]
[null,null,null,null,null,120]
[null,null,null,null,null,120]
[null,null,null,null,null,120]
[null,null,null,null,null,120]
[null,null,null,null,null,120]
[null,null,null,null,null,120]
[null,null,null,null,null,120]
[null,null,null,null,null,120]
[null,null,null,null,null,120]
[null,null,null,null,null,120]
[null,null,null,null,null,120]
[null,null,null,null,null,120]
[null,null,null,null,null,{"$f":"DATEDIF(C386,$F$1,\"Y\")","v":120}]
[null,null,null,null,null,120]
[null,null,null,null,null,120]
[null,null,null,null,null,120]
[null,null,null,null,null,120]
[null,null,null,null,null,120]
[null,null,null,null,null,120]
[null,null,null,null,null,120]
[null,null,null,null,null,120]
[null,null,null,null,null,120]
[null,null,null,null,null,120]
[null,null,null,null,null,120]
[null,null,null,null,null,120]
[null,null,null,null,null,120]
[null,null,null,null,null,120]
[null,null,null,null,null,120]
[null,null,null,null,null,120]
[null,null,null,null,null,120]
[null,null,null,null,null,120]
[null,null,null,null,null,120]
[null,null,null,null,null,120]
[null,null,null,null,null,120]
[null,null,null,null,null,120]
[null,null,null,null,null,120]
[null,null,null,null,null,120]
[null,null,null,null,null,120]
[null,null,null,null,null,120]
[null,null,null,null,null,120]
[null,null,null,null,null,120]
[null,null,null,null,null,120]
[null,null,null,null,null,120]
[null,null,null,null,null,120]
[null,null,null,null,null,120]
[null,null,null,null,null,120]
[null,null,null,null,null,120]
[null,null,null,null,null,120]
[null,null,null,null,null,120]
[null,null,null,null,null,120]
[null,null,null,null,null,120]
[null,null,null,null,null,120]
[null,null,null,null,null,120]
[null,null,null,null,null,120]
[null,null,null,null,null,120]
[null,null,null,null,null,120]
[null,null,null,null,null,120]
[null,null,null,null,null,120]
[null,null,null,null,null,120]
[null,null,null,null,null,120]
[null,null,null,null,null,120]
[null,null,null,null,null,120]
[null,null,null,null,null,120]
[null,null,null,null,null,120]
[null,null,null,null,null,120]
[null,null,null,null,null,120]
[null,null,null,null,null,120]
[null,null,null,null,null,120]
[null,null,null,null,null,120]
[null,null,null,null,null,120]
[null,null,null,null,null,120]
[null,null,null,null,null,120]
[null,null,null,null,null,120]
[null,null,null,null,null,120]
[null,null,null,null,null,120]
[null,null,null,null,null,120]
[null,null,null,null,null,{"$f":"DATEDIF(C450,$F$1,\"Y\")","v":120}]
[null,null,null,null,null,120]
[null,null,null,null,null,120]
[null,null,null,null,null,120]
[null,null,null,null,null,120]
[null,null,null,null,null,120]
[null,null,null,null,null,120]
[null,null,null,null,null,120]
[null,null,null,null,null,120]
[null,null,null,null,null,120]
[null,null,null,null,null,120]
[null,null,null,null,null,120]
[null,null,null,null,null,120]
[null,null,null,null,null,120]
[null,null,null,null,null,120]
[null,null,null,null,null,120]
[null,null,null,null,null,120]
[null,null,null,null,null,120]
[null,null,null,null,null,120]
[null,null,null,null,null,120]
[null,null,null,null,null,120]
[null,null,null,null,null,120]
[null,null,null,null,null,120]
[null,null,null,null,null,120]
[null,null,null,null,null,120]
[null,null,null,null,null,120]
[null,null,null,null,null,120]
[null,null,null,null,null,120]
[null,null,null,null,null,120]
[null,null,null,null,null,120]
[null,null,null,null,null,120]
[null,null,null,null,null,120]
[null,null,null,null,null,120]
[null,null,null,null,null,120]
[null,null,null,null,null,120]
[null,null,null,null,null,120]
[null,null,null,null,null,120]
[null,null,null,null,null,120]
[null,null,null,null,null,120]
[null,null,null,null,null,120]
[null,null,null,null,null,120]
[null,null,null,null,null,120]
[null,null,null,null,null,120]
[null,null,null,null,null,120]
[null,null,null,null,null,120]
[null,null,null,null,null,120]
[null,null,null,null,null,120]
[null,null,null,null,null,120]
[null,null,null,null,null,120]
[null,null,null,null,null,120]
[null,null,null,null,null,120]
[null,null,null,null,null,120]
[null,null,null,null,null,120]
[null,null,null,null,null,120]
[null,null,null,null,null,120]
[null,null,null,null,null,120]
[null,null,null,null,null,120]
[null,null,null,null,null,120]
[null,null,null,null,null,120]
[null,null,null,null,null,120]
[null,null,null,null,null,120]
[null,null,null,null,null,120]
[null,null,null,null,null,120]
[null,null,null,null,null,120]
[null,null,null,null,null,{"$f":"DATEDIF(C514,$F$1,\"Y\")","v":120}]
[null,null,null,null,null,120]
[null,null,null,null,null,120]
[null,null,null,null,null,120]
[null,null,null,null,null,120]
[null,null,null,null,null,120]
[null,null,null,null,null,120]
[null,null,null,null,null,120]
[null,null,null,null,null,120]
[null,null,null,null,null,120]
[null,null,null,null,null,120]
[null,null,null,null,null,120]
[null,null,null,null,null,120]
[null,null,null,null,null,120]
[null,null,null,null,null,120]
[null,null,null,null,null,120]
[null,null,null,null,null,120]
[null,null,null,null,null,120]
[null,null,null,null,null,120]
[null,null,null,null,null,120]
[null,null,null,null,null,120]
[null,null,null,null,null,120]
[null,null,null,null,null,120]
[null,null,null,null,null,120]
[null,null,null,null,null,120]
[null,null,null,null,null,120]
[null,null,null,null,null,120]
[null,null,null,null,null,120]
[null,null,null,null,null,120]
[null,null,null,null,null,120]
[null,null,null,null,null,120]
[null,null,null,null,null,120]
[null,null,null,null,null,120]
[null,null,null,null,null,120]
[null,null,null,null,null,120]
[null,null,null,null,null,120]
[null,null,null,null,null,120]
[null,null,null,null,null,120]
[null,null,null,null,null,120]
[null,null,null,null,null,120]
[null,null,null,null,null,120]
[null,null,null,null,null,120]
[null,null,null,null,null,120]
[null,null,null,null,null,120]
[null,null,null,null,null,120]
[null,null,null,null,null,120]
[null,null,null,null,null,120]
[null,null,null,null,null,120]
[null,null,null,null,null,120]
[null,null,null,null,null,120]
[null,null,null,null,null,120]
[null,null,null,null,null,120]
[null,null,null,null,null,120]
[null,null,null,null,null,120]
[null,null,null,null,null,120]
[null,null,null,null,null,120]
[null,null,null,null,null,120]
[null,null,null,null,null,120]
[null,null,null,null,null,120]
[null,null,null,null,null,120]
[null,null,null,null,null,120]
[null,null,null,null,null,120]
[null,null,null,null,null,120]
[null,null,null,null,null,120]
[null,null,null,null,null,{"$f":"DATEDIF(C578,$F$1,\"Y\")","v":120}]
[null,null,null,null,null,120]
[null,null,null,null,null,120]
[null,null,null,null,null,120]
[null,null,null,null,null,120]
[null,null,null,null,null,120]
[null,null,null,null,null,120]
[null,null,null,null,null,120]
[null,null,null,null,null,120]
[null,null,null,null,null,120]
[null,null,null,null,null,120]
[null,null,null,null,null,120]
[null,null,null,null,null,120]
[null,null,null,null,null,120]
[null,null,null,null,null,120]
[null,null,null,null,null,120]
[null,null,null,null,null,120]
[null,null,null,null,null,120]
[null,null,null,null,null,120]
[null,null,null,null,null,120]
[null,null,null,null,null,120]
[null,null,null,null,null,120]
[null,null,null,null,null,120]
[null,null,null,null,null,120]
[null,null,null,null,null,120]
[null,null,null,null,null,120]
[null,null,null,null,null,120]
[null,null,null,null,null,120]
[null,null,null,null,null,120]
[null,null,null,null,null,120]
[null,null,null,null,null,120]
[null,null,null,null,null,120]
[null,null,null,null,null,120]
[null,null,null,null,null,120]
[null,null,null,null,null,120]
[null,null,null,null,null,120]
[null,null,null,null,null,120]
[null,null,null,null,null,120]
[null,null,null,null,null,120]
[null,null,null,null,null,120]
[null,null,null,null,null,120]
[null,null,null,null,null,120]
[null,null,null,null,null,120]
[null,null,null,null,null,120]
[null,null,null,null,null,120]
[null,null,null,null,null,120]
[null,null,null,null,null,120]
[null,null,null,null,null,120]
[null,null,null,null,null,120]
[null,null,null,null,null,120]
[null,null,null,null,null,120]
[null,null,null,null,null,120]
[null,null,null,null,null,120]
[null,null,null,null,null,120]
[null,null,null,null,null,120]
[null,null,null,null,null,120]
[null,null,null,null,null,120]
[null,null,null,null,null,120]
[null,null,null,null,null,120]
[null,null,null,null,null,120]
[null,null,null,null,null,120]
[null,null,null,null,null,120]
[null,null,null,null,null,120]
[null,null,null,null,null,120]
[null,null,null,null,null,{"$f":"DATEDIF(C642,$F$1,\"Y\")","v":120}]
[null,null,null,null,null,120]
[null,null,null,null,null,120]
[null,null,null,null,null,120]
[null,null,null,null,null,120]
[null,null,null,null,null,120]
[null,null,null,null,null,120]
[null,null,null,null,null,120]
[null,null,null,null,null,120]
[null,null,null,null,null,120]
[null,null,null,null,null,120]
[null,null,null,null,null,120]
[null,null,null,null,null,120]
[null,null,null,null,null,120]
[null,null,null,null,null,120]
[null,null,null,null,null,120]
[null,null,null,null,null,120]
[null,null,null,null,null,120]
[null,null,null,null,null,120]
[null,null,null,null,null,120]
[null,null,null,null,null,120]
[null,null,null,null,null,120]
[null,null,null,null,null,120]
[null,null,null,null,null,120]
[null,null,null,null,null,120]
[null,null,null,null,null,120]
[null,null,null,null,null,120]
[null,null,null,null,null,120]
[null,null,null,null,null,120]
[null,null,null,null,null,120]
[null,null,null,null,null,120]
[null,null,null,null,null,120]
[null,null,null,null,null,120]
[null,null,null,null,null,120]
[null,null,null,null,null,120]
[null,null,null,null,null,120]
[null,null,null,null,null,120]
[null,null,null,null,null,120]
[null,null,null,null,null,120]
[null,null,null,null,null,120]
[null,null,null,null,null,120]
[null,null,null,null,null,120]
[null,null,null,null,null,120]
[null,null,null,null,null,120]
[null,null,null,null,null,120]
[null,null,null,null,null,120]
[null,null,null,null,null,120]
[null,null,null,null,null,120]
[null,null,null,null,null,120]
[null,null,null,null,null,120]
[null,null,null,null,null,120]
[null,null,null,null,null,120]
[null,null,null,null,null,120]
[null,null,null,null,null,120]
[null,null,null,null,null,120]
[null,null,null,null,null,120]
[null,null,null,null,null,120]
[null,null,null,null,null,120]
[null,null,null,null,null,120]
[null,null,null,null,null,120]
[null,null,null,null,null,120]
[null,null,null,null,null,120]
[null,null,null,null,null,120]
[null,null,null,null,null,120]
[null,null,null,null,null,{"$f":"DATEDIF(C706,$F$1,\"Y\")","v":120}]
[null,null,null,null,null,120]
[null,null,null,null,null,120]
[null,null,null,null,null,120]
[null,null,null,null,null,120]
[null,null,null,null,null,120]
[null,null,null,null,null,120]
[null,null,null,null,null,120]
[null,null,null,null,null,120]
[null,null,null,null,null,120]
[null,null,null,null,null,120]
[null,null,null,null,null,120]
[null,null,null,null,null,120]
[null,null,null,null,null,120]
[null,null,null,null,null,120]
[null,null,null,null,null,120]
[null,null,null,null,null,120]
[null,null,null,null,null,120]
[null,null,null,null,null,120]
[null,null,null,null,null,120]
[null,null,null,null,null,120]
[null,null,null,null,null,120]
[null,null,null,null,null,120]
[null,null,null,null,null,120]
[null,null,null,null,null,120]
[null,null,null,null,null,120]
[null,null,null,null,null,120]
[null,null,null,null,null,120]
[null,null,null,null,null,120]
[null,null,null,null,null,120]
[null,null,null,null,null,120]
[null,null,null,null,null,120]
[null,null,null,null,null,120]
[null,null,null,null,null,120]
[null,null,null,null,null,120]
[null,null,null,null,null,120]
[null,null,null,null,null,120]
[null,null,null,null,null,120]
[null,null,null,null,null,120]
[null,null,null,null,null,120]
[null,null,null,null,null,120]
[null,null,null,null,null,120]
[null,null,null,null,null,120]
[null,null,null,null,null,120]
[null,null,null,null,null,120]
[null,null,null,null,null,120]
[null,null,null,null,null,120]
[null,null,null,null,null,120]
[null,null,null,null,null,120]
[null,null,null,null,null,120]
[null,null,null,null,null,120]
[null,null,null,null,null,120]
[null,null,null,null,null,120]
[null,null,null,null,null,120]
[null,null,null,null,null,120]
[null,null,null,null,null,120]
[null,null,null,null,null,120]
[null,null,null,null,null,120]
[null,null,null,null,null,120]
[null,null,null,null,null,120]
[null,null,null,null,null,120]
[null,null,null,null,null,120]
[null,null,null,null,null,120]
[null,null,null,null,null,120]
[null,null,null,null,null,{"$f":"DATEDIF(C770,$F$1,\"Y\")","v":120}]
[null,null,null,null,null,120]
[null,null,null,null,null,120]
[null,null,null,null,null,120]
[null,null,null,null,null,120]
[null,null,null,null,null,120]
[null,null,null,null,null,120]
[null,null,null,null,null,120]
[null,null,null,null,null,120]
[null,null,null,null,null,120]
[null,null,null,null,null,120]
[null,null,null,null,null,120]
[null,null,null,null,null,120]
[null,null,null,null,null,120]
[null,null,null,null,null,120]
[null,null,null,null,null,120]
[null,null,null,null,null,120]
[null,null,null,null,null,120]
[null,null,null,null,null,120]
[null,null,null,null,null,120]
[null,null,null,null,null,120]
[null,null,null,null,null,120]
[null,null,null,null,null,120]
[null,null,null,null,null,120]
[null,null,null,null,null,120]
[null,null,null,null,null,120]
[null,null,null,null,null,120]
[null,null,null,null,null,120]
[null,null,null,null,null,120]
[null,null,null,null,null,120]
[null,null,null,null,null,120]
[null,null,null,null,null,120]
[null,null,null,null,null,120]
[null,null,null,null,null,120]
[null,null,null,null,null,120]
[null,null,null,null,null,120]
[null,null,null,null,null,120]
[null,null,null,null,null,120]
[null,null,null,null,null,120]
[null,null,null,null,null,120]
[null,null,null,null,null,120]
[null,null,null,null,null,120]
[null,null,null,null,null,120]
[null,null,null,null,null,120]
[null,null,null,null,null,120]
[null,null,null,null,null,120]
[null,null,null,null,null,120]
[null,null,null,null,null,120]
[null,null,null,null,null,120]
[null,null,null,null,null,120]
[null,null,null,null,null,120]
[null,null,null,null,null,120]
[null,null,null,null,null,120]
[null,null,null,null,null,120]
[null,null,null,null,null,120]
[null,null,null,null,null,120]
[null,null,null,null,null,120]
[null,null,null,null,null,120]
[null,null,null,null,null,120]
[null,null,null,null,null,120]
[null,null,null,null,null,120]
[null,null,null,null,null,120]
[null,null,null,null,null,120]
[null,null,null,null,null,120]
[null,null,null,null,null,{"$f":"DATEDIF(C834,$F$1,\"Y\")","v":120}]
[null,null,null,null,null,120]
[null,null,null,null,null,120]
[null,null,null,null,null,120]
[null,null,null,null,null,120]
[null,null,null,null,null,120]
[null,null,null,null,null,120]
[null,null,null,null,null,120]
[null,null,null,null,null,120]
[null,null,null,null,null,120]
[null,null,null,null,null,120]
[null,null,null,null,null,120]
[null,null,null,null,null,120]
[null,null,null,null,null,120]
[null,null,null,null,null,120]
[null,null,null,null,null,120]
[null,null,null,null,null,120]
[null,null,null,null,null,120]
[null,null,null,null,null,120]
[null,null,null,null,null,120]
[null,null,null,null,null,120]
[null,null,null,null,null,120]
[null,null,null,null,null,120]
[null,null,null,null,null,120]
[null,null,null,null,null,120]
[null,null,null,null,null,120]
[null,null,null,null,null,120]
[null,null,null,null,null,120]
[null,null,null,null,null,120]
[null,null,null,null,null,120]
[null,null,null,null,null,120]
[null,null,null,null,null,120]
[null,null,null,null,null,120]
[null,null,null,null,null,120]
[null,null,null,null,null,120]
[null,null,null,null,null,120]
[null,null,null,null,null,120]
[null,null,null,null,null,120]
[null,null,null,null,null,120]
[null,null,null,null,null,120]
[null,null,null,null,null,120]
[null,null,null,null,null,120]
[null,null,null,null,null,120]
[null,null,null,null,null,120]
[null,null,null,null,null,120]
[null,null,null,null,null,120]
[null,null,null,null,null,120]
[null,null,null,null,null,120]
[null,null,null,null,null,120]
[null,null,null,null,null,120]
[null,null,null,null,null,120]
[null,null,null,null,null,120]
[null,null,null,null,null,120]
[null,null,null,null,null,120]
[null,null,null,null,null,120]
[null,null,null,null,null,120]
[null,null,null,null,null,120]
[null,null,null,null,null,120]
[null,null,null,null,null,120]
[null,null,null,null,null,120]
[null,null,null,null,null,120]
[null,null,null,null,null,120]
[null,null,null,null,null,120]
[null,null,null,null,null,120]
[null,null,null,null,null,{"$f":"DATEDIF(C898,$F$1,\"Y\")","v":120}]
[null,null,null,null,null,120]
[null,null,null,null,null,120]
[null,null,null,null,null,120]
[null,null,null,null,null,120]
[null,null,null,null,null,120]
[null,null,null,null,null,120]
[null,null,null,null,null,120]
[null,null,null,null,null,120]
[null,null,null,null,null,120]
[null,null,null,null,null,120]
[null,null,null,null,null,120]
[null,null,null,null,null,120]
[null,null,null,null,null,120]
[null,null,null,null,null,120]
[null,null,null,null,null,120]
[null,null,null,null,null,120]
[null,null,null,null,null,120]
[null,null,null,null,null,120]
[null,null,null,null,null,120]
[null,null,null,null,null,120]
[null,null,null,null,null,120]
[null,null,null,null,null,120]
[null,null,null,null,null,120]
[null,null,null,null,null,120]
[null,null,null,null,null,120]
[null,null,null,null,null,120]
[null,null,null,null,null,120]
[null,null,null,null,null,120]
[null,null,null,null,null,120]
[null,null,null,null,null,120]
[null,null,null,null,null,120]
[null,null,null,null,null,120]
[null,null,null,null,null,120]
[null,null,null,null,null,120]
[null,null,null,null,null,120]
[null,null,null,null,null,120]
[null,null,null,null,null,120]
[null,null,null,null,null,120]
[null,null,null,null,null,120]
[null,null,null,null,null,120]
[null,null,null,null,null,120]
[null,null,null,null,null,120]
[null,null,null,null,null,120]
[null,null,null,null,null,120]
[null,null,null,null,null,120]
[null,null,null,null,null,120]
[null,null,null,null,null,120]
[null,null,null,null,null,120]
[null,null,null,null,null,120]
[null,null,null,null,null,120]
[null,null,null,null,null,120]
[null,null,null,null,null,120]
[null,null,null,null,null,120]
[null,null,null,null,null,120]
[null,null,null,null,null,120]
[null,null,null,null,null,120]
[null,null,null,null,null,120]
[null,null,null,null,null,120]
[null,null,null,null,null,120]
[null,null,null,null,null,120]
[null,null,null,null,null,120]
[null,null,null,null,null,120]
[null,null,null,null,null,120]
[null,null,null,null,null,{"$f":"DATEDIF(C962,$F$1,\"Y\")","v":120}]
[null,null,null,null,null,120]
[null,null,null,null,null,120]
[null,null,null,null,null,120]
[null,null,null,null,null,120]
[null,null,null,null,null,120]
[null,null,null,null,null,120]
[null,null,null,null,null,120]
[null,null,null,null,null,120]
[null,null,null,null,null,120]
[null,null,null,null,null,120]
[null,null,null,null,null,120]
[null,null,null,null,null,120]
[null,null,null,null,null,120]
[null,null,null,null,null,120]
[null,null,null,null,null,120]
[null,null,null,null,null,120]
[null,null,null,null,null,120]
[null,null,null,null,null,120]
[null,null,null,null,null,120]
[null,null,null,null,null,120]
[null,null,null,null,null,120]
[null,null,null,null,null,120]
[null,null,null,null,null,120]
[null,null,null,null,null,120]
[null,null,null,null,null,120]
[null,null,null,null,null,120]
[null,null,null,null,null,120]
[null,null,null,null,null,120]
[null,null,null,null,null,120]
[null,null,null,null,null,120]
[null,null,null,null,null,120]
[null,null,null,null,null,120]
[null,null,null,null,null,120]
[null,null,null,null,null,120]
[null,null,null,null,null,120]
[null,null,null,null,null,120]
[null,null,null,null,null,120]
[null,null,null,null,null,120]

{"sheet":"Reportsheet","index":2,"n_rows":1,"n_cols":17,"rows_kept":1,"cut":false,"hidden":true,"merged":[]}
["ÅR","Hold","Årstid på Hold","Instruktør første 6x","Instruktør sidste 6x","Instruktør hjælper første 6x","Instruktør hjælper sidste 6x","Dansestilart 1","Dansestilart 2","Kursister i alt","Antal Mænd","Antal Damer","Samlet GNS Alder","Gns Alder Mænd","Gns Alder Damer","Antal x Undervisning","Fordeling M/K"]

{"sheet":"Pivot Tabel","index":3,"n_rows":34,"n_cols":10,"rows_kept":34,"cut":false,"hidden":true,"merged":[]}
[]
[]
["ÅR","Hold","Årstid på Hold","Antal Kursister i alt","Sum Antal Mænd","Sum Antal Damer","Samlet Gennemsnit Alder","Gennemsnit Alder Mænd","Gennemsnit Alder Damer","Gennemsnit af M/K på Holdet"]
[2019,null,null,351,160,191,55.220000000000006,55.926666666666655,54.64,1.2]
[null,"Ungdomshold Grundkursister",null,9,5,4,22.7,24,21.3,0.8]
[null,null,"Grundkursister Ungdom E",9,5,4,22.7,24,21.3,0.8]
[]
[null,"Grundkursister ",null,50,22,28,54.25,54.05,54.95,1.2999999999999998]
[null,null,"Grundkursister E",17,7,10,57,59,56,1.4]
[null,null,"Grundkursister F",33,15,18,51.5,49.1,53.9,1.2]
[]
[null,"Fortsætter",null,77,26,51,53.05,52.3,53.85,1.9500000000000002]
[null,null,"Fortsættere 1 E",34,12,22,52.9,51.7,54.1,1.8]
[null,null,"Fortsættere 1 F",43,14,29,53.2,52.9,53.6,2.1]
[]
[null,"Tango ",null,74,37,37,59.35,60.4,58.8,1]
[null,null,"GrundkursusTango F",42,21,21,57.7,58.9,56.6,1]
[null,null,"FortsætterTango 1 E",32,16,16,61,61.9,61,1]
[]
[null,"Tema Blues Boogie",null,21,10,11,61.1,62.5,59.6,1.1000000000000001]
[null,null,"Blues Boogie F",21,10,11,61.1,62.5,59.6,1.1000000000000001]
[]
[null,"Videregående",null,60,27,33,57.149999999999991,58.274999999999999,56.024999999999999,1.2749999999999999]
[null,null,"Videregående 1 E",12,5,7,52.9,51.4,54.4,1.4]
[null,null,"Videregående 1 F",14,5,9,58.3,61,55.7,1.8]
[null,null,"Videregående 2 E",23,10,13,58.2,59.3,57,1.3]
[null,null,"Videregående 2 F",11,7,4,59.2,61.4,57,0.6]
[]
[null,"Tema Jump Boogie (Jump)",null,47,26,21,59.900000000000006,61.45,58.3,0.8]
[null,null,"Jump Boogie Fortsætter E",25,14,11,60.1,60.6,59.5,0.8]
[null,null,"Jump Boogie Grundkursus E",22,12,10,59.7,62.3,57.1,0.8]
[]
[null,"Tema Jump Rock",null,13,7,6,62.8,62.9,62.8,0.9]
[null,null,"Jump Rock F",13,7,6,62.8,62.9,62.8,0.9]

{"sheet":"Mastersheet","index":4,"n_rows":85,"n_cols":18,"rows_kept":85,"cut":false,"hidden":true,"merged":[]}
["ÅR","Hold","Årstid på Hold","Instruktør første 6x","Instruktør sidste 6x","Instruktør hjælper første 6x","Instruktør hjælper sidste 6x","Dansestilart 1","Dansestilart 2","Kursister i alt","Antal Mænd","Antal Damer","Samlet GNS Alder","Gns Alder Mænd","Gns Alder Damer","Antal x Undervisning","Fordeling M/K på Holdet","Bemærkninger"]
[2013,"Grundkursister ","Grundkursister F",null,null,null,null,null,null,8,null,null,null,null,null,12]
[2013,"Grundkursister ","Grundkursister E",null,null,null,null,null,null,24,null,null,null,null,null,12]
[2013,"Fortsætter","Fortsættere 1 F",null,null,null,null,null,null,29,null,null,null,null,null,6]
[2013,"Tema Jump Boogie (Jump)","Jump Boogie Grundkursus F",null,null,null,null,null,null,16]
[2014,"Grundkursister ","Grundkursister E",null,null,null,null,null,null,12,null,null,null,null,null,12]
[2014,"Grundkursister ","Grundkursister F",null,null,null,null,null,null,12,null,null,null,null,null,12]
[2014,"Fortsætter","Fortsættere 1 F",null,null,null,null,null,null,20,null,null,null,null,null,6]
[2015,"Grundkursister ","Grundkursister E",null,null,null,null,null,null,29,10,19,50.4,51.6,49.3,12,1.9]
[2015,"Grundkursister ","Grundkursister F",null,null,null,null,null,null,11,null,null,null,null,null,12]
[2015,"Fortsætter","Fortsættere 1 F",null,null,null,null,null,null,11,4,7,null,null,null,6,1.8]
[2015,"Fortsætter","Fortsættere 1 E",null,null,null,null,null,null,10,3,7,56,58.3,53.7,12,2.2999999999999998]
[2015,"Videregående ","Videregående 1 E",null,null,null,null,null,null,25,12,13,59.2,56.3,62,6,1.1000000000000001]
[2015,"Tema Glidende Gåswing","Tema Glidende E",null,null,null,null,null,null,16,10,6,57.6,56.6,58.5,6,0.6]
[2015,"Passive Medlemmer","Passive Medlemmer E",null,null,null,null,null,null,16,4,12,null,null,null,null,3]
[2015,"Passive Medlemmer","Passive Medlemmer F",null,null,null,null,null,null,16,4,12,null,null,null,null,3]
[2015,"Medlemmer på Flere Hold","Medlemmer på Flere Hold E",null,null,null,null,null,null,11,8,3,null,null,null,null,0.4]
[2016,"Grundkursister ","Grundkursister E",null,null,null,null,null,null,14,4,10,50.4,55.8,57.6,12,2.5]
[2016,"Fortsætter","Fortsættere 1 F",null,null,null,null,"BygdeSwing","RockeSwing",29,11,18,54.1,55.4,52.7,6,1.6]
[2016,"Fortsætter","Fortsættere 1 E",null,null,null,null,"DanseSwing","Rock´n Roll",20,7,13,55.7,55.4,56,12,1.9]
[2016,"Videregående","Videregående 1 F",null,null,null,null,null,null,21,11,10,58.5,58.6,58.4,12,0.9]
[2016,"Videregående","Videregående 1 E",null,null,null,null,null,null,24,8,16,60,60.8,59.3,12,3.2]
[2016,"Tema Jump Boogie (Jump)","Jump Boogie Grundkursus E",null,null,null,null,null,null,19,10,9,57.5,58.6,56.6,6,0.9]
[2016,"Tema Boogie Woogie","Boogie Woogie F",null,null,null,null,null,null,13,7,6,56.5,56,57,6,0.9]
[2016,"Tema Blues Boogie","Blues Boogie F",null,null,null,null,null,null,17,7,10,56.4,54.7,58.1,6,1.4]
[2016,"Passive Medlemmer","Passive Medlemmer E",null,null,null,null,null,null,15,7,8,58.2,60.2,56.3,null,1.1000000000000001]
[2016,"Passive Medlemmer","Passive Medlemmer F",null,null,null,null,null,null,18,9,9,58,59,57,null,1]
[2016,"Medlemmer på Flere Hold","Medlemmer på Flere Hold E",null,null,null,null,null,null,14,7,7,null,null,null,null,1]
[2016,"Medlemmer på Flere Hold","Medlemmer på Flere Hold F",null,null,null,null,null,null,24,15,9,null,null,null,null,0.9]
[2016,"Grundkursister ","Grundkursister F",null,null,null,null,null,null,13,5,8,54,55.8,52.1,12,1.6]
[2017,"Grundkursister ","Grundkursister E",null,null,null,null,null,null,17,5,12,54.4,57.2,51.5,12,2.4]
[2017,"Fortsætter","Fortsættere 1 E",null,null,null,null,null,null,24,8,16,51.2,52.3,50,12,2]
[2017,"Videregående","Videregående 1 F",null,null,null,null,null,null,24,12,12,58.4,58.7,58,12,1]
[2017,"Videregående","Videregående 1 E",null,null,null,null,null,null,26,12,14,58.5,58.9,58.1,12,1.2]
[2017,"Tema Jump Boogie (Jump)","Jump Boogie Grundkursus F",null,null,null,null,null,null,26,15,11,59.9,60.3,59.4,6,0.7]
[2017,"Bugg ","Bugg Grundkursus F",null,null,null,null,null,null,12,7,5,60.5,62,59,6,0.7]
[2017,"Tema Glidende Gåswing","Tema Glidende E",null,null,null,null,null,null,20,10,10,61.8,63.2,60.4,6,1]
[2017,"Passive Medlemmer","Passive Medlemmer F",null,null,null,null,null,null,28,10,18,56.9,58,55.7,null,1.8]
[2017,"Medlemmer på Flere Hold","Medlemmer på Flere Hold E",null,null,null,null,null,null,32,20,12,null,null,null,null,0.6]
[2017,"Medlemmer på Flere Hold","Medlemmer på Flere Hold F",null,null,null,null,null,null,27,16,11,null,null,null,null,0.7]
[2017,"Bugg ","Bugg Grundkursus E",null,null,null,null,null,null,37,18,19,62.9,64.5,61.3,6,1.1000000000000001]
[2017,"Grundkursister ","Grundkursister F",null,null,null,null,null,null,27,6,21,48.1,48.7,47.5,12,3.5]
[2017,"Fortsætter","Fortsættere 1 F",null,null,null,null,"DanseSwing","Rock´n Roll",18,6,12,56.9,57.5,56.3,6,2]
[2018,"Grundkursister ","Grundkursister E",null,null,null,null,null,null,49,17,32,53.7,53.4,54,12,1.9]
[2018,"Grundkursister ","Grundkursister F",null,null,null,null,null,null,22,9,13,53.6,52.4,54.7,12,1.4]
[2018,"Fortsætter","Fortsættere 1 F",null,null,null,null,"BygdeSwing","RockeSwing",15,5,10,52.3,51.4,53.1,6,2]
[2018,"Fortsætter","Fortsættere 1 E",null,null,null,null,"DanseSwing","Rock´n Roll",24,9,15,55.5,56.4,54.5,12,1.7]
[2018,"Tema SidestegsRock","Tema SidestegsRock E",null,null,null,null,null,null,8,4,4,58.4,59.3,57.5,6,1]
[2018,"Bugg ","Bugg Fortsætter F",null,null,null,null,null,null,29,16,13,59.6,61.8,57.3,6,0.8]
[2018,"Tema Rock´n Roll","Rock´n Roll F",null,null,null,null,null,null,18,9,9,60,61.2,58.8,6,1]
[2018,"Passive Medlemmer","Passive Medlemmer E",null,null,null,null,null,null,29,12,17,60.2,60.8,59.5,null,1.4]
[2018,"Passive Medlemmer","Passive Medlemmer F",null,null,null,null,null,null,15,5,10,59.8,60,59.5,null,2]
[2018,"Videregående","Videregående 1 E",null,null,null,null,"BygdeSwing","DanseSwing",27,13,14,55.6,56.6,54.6,12,1.1000000000000001]
[2018,"Medlemmer på Flere Hold","Medlemmer på Flere Hold F",null,null,null,null,null,null,30,18,12,null,null,null,null,0.7]
[2018,"Videregående","Videregående 1 F",null,null,null,null,null,null,32,15,17,58.4,59.7,57.1,12,1.1000000000000001]
[2019,"Videregående","Videregående 1 F",null,null,null,null,"DanseSwing","BygdeSwing",14,5,9,58.3,61,55.7,12,1.8]
[2019,"Tango ","GrundkursusTango F",null,null,null,null,null,null,42,21,21,57.7,58.9,56.6,4,1]
[2019,"Tema Blues Boogie","Blues Boogie F",null,null,null,null,null,null,21,10,11,61.1,62.5,59.6,6,1.1000000000000001]
[2019,"Videregående","Videregående 2 F",null,null,null,null,"BygdeSwing","DanseSwing",11,7,4,59.2,61.4,57,12,0.6]
[2019,"Passive Medlemmer","Passive Medlemmer F",null,null,null,null,null,null,22,9,13,58.4,57.6,59.2,null,1.4]
[2019,"Medlemmer på Flere Hold","Medlemmer på Flere Hold F",null,null,null,null,null,null,38,20,18,null,null,null,null,0.9]
[2019,"Videregående","Videregående 1 E",null,null,null,null,"DanseSwing","Rock´n Roll",12,5,7,52.9,51.4,54.4,12,1.4]
[2019,"Videregående","Videregående 2 E",null,null,null,null,"DanseSwing","Rock´n Roll",23,10,13,58.2,59.3,57,12,1.3]
[2019,"Fortsætter","Fortsættere 1 E",null,null,null,null,"BygdeSwing","RockeSwing",34,12,22,52.9,51.7,54.1,12,1.8]
[2019,"Passive Medlemmer","Passive Medlemmer E",null,null,null,null,null,null,17,7,10,56.9,57,56.8,null,1.4]
[2019,"Tango ","FortsætterTango 1 E",null,null,null,null,null,null,32,16,16,61,61.9,61,4,1]
[2019,"Tema Jump Boogie (Jump)","Jump Boogie Fortsætter E",null,null,null,null,null,null,25,14,11,60.1,60.6,59.5,6,0.8]
[2019,"Ungdomshold Grundkursister","Grundkursister Ungdom E",null,null,null,null,null,null,9,5,4,22.7,24,21.3,10,0.8]
[2019,"Tema Jump Boogie (Jump)","Jump Boogie Grundkursus E",null,null,null,null,null,null,22,12,10,59.7,62.3,57.1,6,0.8]
[2019,"Kom og Spis Arrangement","Kom og Spis Arrangementer E",null,null,null,null,null,null,86,39,47,null,null,null,null,1.2]
[2019,"Grundkursister ","Grundkursister E",null,null,null,null,null,null,17,7,10,57,59,56,12,1.4]
[2019,"Grundkursister ","Grundkursister F",null,null,null,null,null,null,33,15,18,51.5,49.1,53.9,12,1.2]
[2019,"Fortsætter","Fortsættere 1 F",null,null,null,null,"DanseSwing","Rock´n Roll",43,14,29,53.2,52.9,53.6,12,2.1]
[2019,"Tema Jump Rock","Jump Rock F",null,null,null,null,null,null,13,7,6,62.8,62.9,62.8,6,0.9]
[2020,"West Coast Swing (WCS)","Begynder F (WCS)",null,null,null,null,null,null,71,33,38,58.5,59.6,57.4,1,1.2]
[2020,"Videregående","Videregående 1 F",null,null,null,null,"BygdeSwing","RockeSwing",33,16,17,54.2,54.2,54.3,12,1.1000000000000001]
[2020,"Passive Medlemmer","Passive Medlemmer F",null,null,null,null,null,null,22,8,14,57,58,56.4,null,1.8]
[2020,"Fortsætter","Fortsættere 1 F",null,null,null,null,"DanseSwing","Rock´n Roll",18,10,8,55.4,53.6,57.6,12,0.8]
[2020,"Grundkursister ","Grundkursister F",null,null,null,null,null,null,17,7,10,57.3,60.3,55.2,12,1.4]
[2020,"Tema Blues Boogie","Blues Boogie F",null,null,null,null,null,null,8,3,5,62,60.3,63,6,1.7]
[2020,"Ungdomshold Grundkursister","Grundkursister F Ungdom",null,null,null,null,null,null,11,7,4,24.3,23.9,25,12,0.6]
[2020,"Ungdomshold Fortsættere","Fortsættere 1 F Ungdom",null,null,null,null,"BygdeSwing","RockeSwing",3,1,2,22.7,25,21.5,12,2]
[2020,"Tema Glidende Gåswing","Glidende F",null,null,null,null,null,null,12,5,7,59.3,62,57.5,6,1.4]
[2020,"Tango ","FortsætterTango 2 F",null,null,null,null,null,null,41,20,21,60.5,61.8,59.1,3,1.1000000000000001]
[2020,"Grundkursister ","Grundkursister F"]

{"sheet":"Hovedside","index":5,"n_rows":0,"n_cols":0,"rows_kept":0,"cut":false,"hidden":false,"merged":[[0,0,1048575,16383]]}